[Event "Titled Tuesday Blitz March 07 Early 2023"]
[White "Talibov, Shiroghlan"]
[Black "Abdilkhair, Abilmansur"]
[WhiteFideId "13429078"]
[BlackFideId "13716417"]
[WhiteElo "2218"]
[BlackElo "2216"]
[Result "1-0"]
[Round "01"]
[TimeControl "180+2"]
[Date "2023.03.07"]
[WhiteClock "0:00:55"]
[BlackClock "0:00:07"]

1. Nf3 {[%clk 0:02:59]}  Nf6 {[%clk 0:02:59]} 2. c4 {[%clk 0:02:59]}  e6 {[%clk 0:02:59]} 3. Nc3 {[%clk 0:02:58]}  d5 {[%clk 0:03:00]} 4. d4 {[%clk 0:02:59]}  Be7 {[%clk 0:02:58]} 5. Bf4 {[%clk 0:02:58]}  O-O {[%clk 0:02:58]} 6. e3 {[%clk 0:02:58]}  c6 {[%clk 0:02:58]} 7. Bd3 {[%clk 0:02:55]}  dxc4 {[%clk 0:02:56]} 8. Bxc4 {[%clk 0:02:55]}  b5 {[%clk 0:02:57]} 9. Be2 {[%clk 0:02:55]}  Bb7 {[%clk 0:02:56]} 10. O-O {[%clk 0:02:55]}  a6 {[%clk 0:02:55]} 11. a4 {[%clk 0:02:55]}  Nbd7 {[%clk 0:02:52]} 12. Ne5 {[%clk 0:02:48]}  Nxe5 {[%clk 0:02:45]} 13. Bxe5 {[%clk 0:02:48]}  b4 {[%clk 0:02:40]} 14. Na2 {[%clk 0:02:47]}  c5 {[%clk 0:02:39]} 15. dxc5 {[%clk 0:02:34]}  Bxc5 {[%clk 0:02:40]} 16. Rc1 {[%clk 0:02:30]}  Rc8 {[%clk 0:02:28]} 17. Bf3 {[%clk 0:02:20]}  Qxd1 {[%clk 0:02:04]} 18. Rfxd1 {[%clk 0:02:17]}  Bxf3 {[%clk 0:02:02]} 19. gxf3 {[%clk 0:02:10]}  Nd5 {[%clk 0:02:00]} 20. e4 {[%clk 0:01:59]}  b3 {[%clk 0:01:25]} 21. exd5 {[%clk 0:01:44]}  bxa2 {[%clk 0:01:24]} 22. Ra1 {[%clk 0:01:40]}  Rfd8 {[%clk 0:01:01]} 23. dxe6 {[%clk 0:01:38]}  fxe6 {[%clk 0:00:39]} 24. Rxd8+ {[%clk 0:01:33]}  Rxd8 {[%clk 0:00:40]} 25. Bc3 {[%clk 0:01:34]}  Kf7 {[%clk 0:00:17]} 26. Kg2 {[%clk 0:01:28]}  g6 {[%clk 0:00:14]} 27. Rxa2 {[%clk 0:01:28]}  Rd1 {[%clk 0:00:15]} 28. b4 {[%clk 0:01:25]}  Ba7 {[%clk 0:00:14]} 29. b5 {[%clk 0:01:22]}  Rc1 {[%clk 0:00:10]} 30. Bd2 {[%clk 0:01:17]}  Rc4 {[%clk 0:00:09]} 31. bxa6 {[%clk 0:01:16]}  Rc6 {[%clk 0:00:09]} 32. Be3 {[%clk 0:01:15]}  Rxa6 {[%clk 0:00:08]} 33. Bxa7 {[%clk 0:01:13]}  Rxa7 {[%clk 0:00:09]} 34. a5 {[%clk 0:01:13]}  Ra6 {[%clk 0:00:09]} 35. Kg3 {[%clk 0:01:08]}  g5 {[%clk 0:00:08]} 36. f4 {[%clk 0:01:08]}  h6 {[%clk 0:00:08]} 37. fxg5 {[%clk 0:01:06]}  hxg5 {[%clk 0:00:09]} 38. Kf3 {[%clk 0:01:06]}  Kf6 {[%clk 0:00:08]} 39. Ke4 {[%clk 0:01:06]}  Kg6 {[%clk 0:00:08]} 40. Kd4 {[%clk 0:01:04]}  Kf5 {[%clk 0:00:08]} 41. Kc5 {[%clk 0:01:04]}  Kf4 {[%clk 0:00:07]} 42. Ra3 {[%clk 0:01:01]}  e5 {[%clk 0:00:05]} 43. Kb5 {[%clk 0:01:01]}  Rh6 {[%clk 0:00:05]} 44. h3 {[%clk 0:00:59]}  e4 {[%clk 0:00:02]} 45. a6 {[%clk 0:00:59]}  Rh7 {[%clk 0:00:01]} 46. a7 {[%clk 0:00:50]}  Rxa7 {[%clk 0:00:01]} 47. Rxa7 {[%clk 0:00:51]}  Kf3 {[%clk 0:00:02]} 48. Rf7+ {[%clk 0:00:52]}  Kg2 {[%clk 0:00:02]} 49. Kc4 {[%clk 0:00:52]}  Kxh3 {[%clk 0:00:02]} 50. Kd4 {[%clk 0:00:53]}  g4 {[%clk 0:00:02]} 51. Kxe4 {[%clk 0:00:53]}  g3 {[%clk 0:00:03]} 52. Rh7+ {[%clk 0:00:52]}  Kg2 {[%clk 0:00:03]} 53. fxg3 {[%clk 0:00:53]}  Kf2 {[%clk 0:00:04]} 54. g4 {[%clk 0:00:53]}  Kg3 {[%clk 0:00:05]} 55. g5 {[%clk 0:00:53]}  Kg4 {[%clk 0:00:05]} 56. g6 {[%clk 0:00:54]}  Kg5 {[%clk 0:00:06]} 57. g7 {[%clk 0:00:55]}  Kg6 {[%clk 0:00:07]} 58. g8=Q+ {[%clk 0:00:55]} 1-0


[Site "https://www.chess.com"]

[Event "Titled Tuesday Blitz March 07 Early 2023"]
[White "Dudzinski, Pawel"]
[Black "Drygalov, Sergey"]
[WhiteFideId "1117890"]
[BlackFideId "24171743"]
[WhiteElo "2099"]
[BlackElo "2533"]
[Result "1/2-1/2"]
[Round "01"]
[TimeControl "180+2"]
[Date "2023.03.07"]
[WhiteClock "0:00:13"]
[BlackClock "0:00:16"]

1. e4 {[%clk 0:03:00]}  c5 {[%clk 0:02:57]} 2. c4 {[%clk 0:03:00]}  Nc6 {[%clk 0:02:56]} 3. Nc3 {[%clk 0:03:01]}  g6 {[%clk 0:02:56]} 4. g3 {[%clk 0:03:02]}  Bg7 {[%clk 0:02:56]} 5. Bg2 {[%clk 0:03:02]}  d6 {[%clk 0:02:56]} 6. Rb1 {[%clk 0:03:03]}  Nf6 {[%clk 0:02:56]} 7. Nge2 {[%clk 0:03:03]}  O-O {[%clk 0:02:55]} 8. a3 {[%clk 0:03:03]}  Nd4 {[%clk 0:02:53]} 9. b4 {[%clk 0:03:02]}  Bg4 {[%clk 0:02:53]} 10. O-O {[%clk 0:02:52]}  b6 {[%clk 0:02:28]} 11. f3 {[%clk 0:02:49]}  Bd7 {[%clk 0:02:27]} 12. d3 {[%clk 0:02:46]}  e6 {[%clk 0:02:26]} 13. Nxd4 {[%clk 0:02:41]}  cxd4 {[%clk 0:02:26]} 14. Ne2 {[%clk 0:02:36]}  a5 {[%clk 0:02:26]} 15. Nxd4 {[%clk 0:02:18]}  axb4 {[%clk 0:02:26]} 16. axb4 {[%clk 0:02:18]}  Ra2 {[%clk 0:02:27]} 17. Be3 {[%clk 0:02:00]}  Qa8 {[%clk 0:02:22]} 18. Ra1 {[%clk 0:01:53]}  Qa3 {[%clk 0:02:05]} 19. Rxa2 {[%clk 0:01:36]}  Qxa2 {[%clk 0:02:06]} 20. Qb3 {[%clk 0:01:36]}  Ra8 {[%clk 0:02:01]} 21. Qxa2 {[%clk 0:01:18]}  Rxa2 {[%clk 0:02:02]} 22. b5 {[%clk 0:01:12]}  h5 {[%clk 0:01:20]} 23. Nc6 {[%clk 0:01:08]}  Ne8 {[%clk 0:00:47]} 24. Bxb6 {[%clk 0:00:55]}  Bxc6 {[%clk 0:00:35]} 25. bxc6 {[%clk 0:00:55]}  Ra6 {[%clk 0:00:33]} 26. c7 {[%clk 0:00:52]}  Ra8 {[%clk 0:00:33]} 27. e5 {[%clk 0:00:42]}  dxe5 {[%clk 0:00:19]} 28. f4 {[%clk 0:00:42]}  Rc8 {[%clk 0:00:15]} 29. Bb7 {[%clk 0:00:29]}  Rxc7 {[%clk 0:00:16]} 30. Bxc7 {[%clk 0:00:29]}  Nxc7 {[%clk 0:00:16]} 31. fxe5 {[%clk 0:00:28]}  Bxe5 {[%clk 0:00:16]} 32. Kg2 {[%clk 0:00:26]}  Bd4 {[%clk 0:00:16]} 33. Rb1 {[%clk 0:00:24]}  Kg7 {[%clk 0:00:16]} 34. Bf3 {[%clk 0:00:25]}  Na6 {[%clk 0:00:16]} 35. h4 {[%clk 0:00:17]}  Nc5 {[%clk 0:00:16]} 36. Be2 {[%clk 0:00:17]}  Kf6 {[%clk 0:00:16]} 37. Rb8 {[%clk 0:00:17]}  Bc3 {[%clk 0:00:12]} 38. Rd8 {[%clk 0:00:16]}  Nb3 {[%clk 0:00:12]} 39. Bd1 {[%clk 0:00:15]}  Nd4 {[%clk 0:00:10]} 40. Ba4 {[%clk 0:00:14]}  Nf5 {[%clk 0:00:08]} 41. Rd7 {[%clk 0:00:11]}  Be5 {[%clk 0:00:08]} 42. Ra7 {[%clk 0:00:08]}  Bxg3 {[%clk 0:00:06]} 43. Be8 {[%clk 0:00:08]}  Bxh4 {[%clk 0:00:07]} 44. Rxf7+ {[%clk 0:00:08]}  Ke5 {[%clk 0:00:07]} 45. Rh7 {[%clk 0:00:07]}  Ne3+ {[%clk 0:00:04]} 46. Kf3 {[%clk 0:00:07]}  Bg5 {[%clk 0:00:04]} 47. Bxg6 {[%clk 0:00:06]}  Nc2 {[%clk 0:00:04]} 48. Bxh5 {[%clk 0:00:06]}  Nd4+ {[%clk 0:00:03]} 49. Kg4 {[%clk 0:00:07]}  Be3 {[%clk 0:00:03]} 50. Bf7 {[%clk 0:00:07]}  Kf6 {[%clk 0:00:03]} 51. Bg8 {[%clk 0:00:07]}  Nf5 {[%clk 0:00:03]} 52. Rf7+ {[%clk 0:00:07]}  Ke5 {[%clk 0:00:03]} 53. Kf3 {[%clk 0:00:07]}  Bc5 {[%clk 0:00:03]} 54. Rb7 {[%clk 0:00:06]}  Nd4+ {[%clk 0:00:02]} 55. Kg2 {[%clk 0:00:06]}  Nf5 {[%clk 0:00:03]} 56. Rb8 {[%clk 0:00:04]}  Bd6 {[%clk 0:00:02]} 57. Re8 {[%clk 0:00:04]}  Ng7 {[%clk 0:00:03]} 58. Ra8 {[%clk 0:00:04]}  Nf5 {[%clk 0:00:03]} 59. Kf3 {[%clk 0:00:04]}  Nd4+ {[%clk 0:00:03]} 60. Ke3 {[%clk 0:00:04]}  Nf5+ {[%clk 0:00:04]} 61. Kd2 {[%clk 0:00:04]}  Bb4+ {[%clk 0:00:04]} 62. Kc2 {[%clk 0:00:04]}  Nd4+ {[%clk 0:00:05]} 63. Kb2 {[%clk 0:00:05]}  Bc5 {[%clk 0:00:05]} 64. Ra6 {[%clk 0:00:04]}  Kf5 {[%clk 0:00:05]} 65. Ra8 {[%clk 0:00:04]}  Ke5 {[%clk 0:00:05]} 66. Re8 {[%clk 0:00:03]}  Kd6 {[%clk 0:00:05]} 67. Kc3 {[%clk 0:00:03]}  Ne2+ {[%clk 0:00:05]} 68. Kd2 {[%clk 0:00:03]}  Nd4 {[%clk 0:00:06]} 69. Rd8+ {[%clk 0:00:03]}  Ke5 {[%clk 0:00:06]} 70. Ra8 {[%clk 0:00:02]}  Kd6 {[%clk 0:00:07]} 71. Kd1 {[%clk 0:00:03]}  Ke5 {[%clk 0:00:07]} 72. Ra2 {[%clk 0:00:03]}  Kd6 {[%clk 0:00:06]} 73. Rh2 {[%clk 0:00:04]}  Nf5 {[%clk 0:00:07]} 74. Rh5 {[%clk 0:00:04]}  Bd4 {[%clk 0:00:05]} 75. Bh7 {[%clk 0:00:03]}  Ne3+ {[%clk 0:00:04]} 76. Ke2 {[%clk 0:00:03]}  Ng4 {[%clk 0:00:05]} 77. Rg5 {[%clk 0:00:03]}  Nf6 {[%clk 0:00:06]} 78. Be4 {[%clk 0:00:01]}  Be5 {[%clk 0:00:06]} 79. Rg2 {[%clk 0:00:01]}  Nd7 {[%clk 0:00:06]} 80. Rg1 {[%clk 0:00:02]}  Nc5 {[%clk 0:00:07]} 81. Rd1 {[%clk 0:00:02]}  Nb3 {[%clk 0:00:07]} 82. Rc1 {[%clk 0:00:03]}  Nd4+ {[%clk 0:00:08]} 83. Kd1 {[%clk 0:00:02]}  Bf4 {[%clk 0:00:08]} 84. Rb1 {[%clk 0:00:03]}  Be5 {[%clk 0:00:06]} 85. Rb6+ {[%clk 0:00:03]}  Kc5 {[%clk 0:00:07]} 86. Ra6 {[%clk 0:00:02]}  Kb4 {[%clk 0:00:07]} 87. Kd2 {[%clk 0:00:02]}  Nb3+ {[%clk 0:00:07]} 88. Ke3 {[%clk 0:00:02]}  Bd4+ {[%clk 0:00:08]} 89. Kf3 {[%clk 0:00:02]}  Nc5 {[%clk 0:00:08]} 90. Rb6+ {[%clk 0:00:01]}  Kc3 {[%clk 0:00:09]} 91. Rc6 {[%clk 0:00:02]}  e5 {[%clk 0:00:09]} 92. Kg4 {[%clk 0:00:02]}  Nb3 {[%clk 0:00:10]} 93. Kf5 {[%clk 0:00:02]}  Kb4 {[%clk 0:00:10]} 94. Re6 {[%clk 0:00:02]}  Bc3 {[%clk 0:00:10]} 95. Rxe5 {[%clk 0:00:02]}  Bxe5 {[%clk 0:00:10]} 96. Kxe5 {[%clk 0:00:03]}  Kc5 {[%clk 0:00:11]} 97. Ke6 {[%clk 0:00:04]}  Nd4+ {[%clk 0:00:12]} 98. Ke5 {[%clk 0:00:04]}  Nb3 {[%clk 0:00:09]} 99. Bd5 {[%clk 0:00:05]}  Nd4 {[%clk 0:00:09]} 100. Bg2 {[%clk 0:00:05]}  Nc2 {[%clk 0:00:09]} 101. Bf3 {[%clk 0:00:05]}  Nd4 {[%clk 0:00:10]} 102. Bd1 {[%clk 0:00:06]}  Nc6+ {[%clk 0:00:10]} 103. Ke6 {[%clk 0:00:06]}  Nd4+ {[%clk 0:00:10]} 104. Ke5 {[%clk 0:00:06]}  Nc6+ {[%clk 0:00:10]} 105. Ke4 {[%clk 0:00:07]}  Nd4 {[%clk 0:00:10]} 106. Bh5 {[%clk 0:00:07]}  Nb3 {[%clk 0:00:10]} 107. Be8 {[%clk 0:00:08]}  Nd4 {[%clk 0:00:11]} 108. Bf7 {[%clk 0:00:08]}  Nb3 {[%clk 0:00:11]} 109. Ke3 {[%clk 0:00:09]}  Nd4 {[%clk 0:00:11]} 110. Ke4 {[%clk 0:00:09]}  Nc2 {[%clk 0:00:11]} 111. Bh5 {[%clk 0:00:08]}  Nd4 {[%clk 0:00:11]} 112. Bd1 {[%clk 0:00:09]}  Ne6 {[%clk 0:00:11]} 113. Ba4 {[%clk 0:00:10]}  Nd4 {[%clk 0:00:12]} 114. Bd7 {[%clk 0:00:10]}  Nb3 {[%clk 0:00:12]} 115. Ke3 {[%clk 0:00:10]}  Nd4 {[%clk 0:00:12]} 116. Kd2 {[%clk 0:00:10]}  Nf3+ {[%clk 0:00:12]} 117. Kc3 {[%clk 0:00:10]}  Nd4 {[%clk 0:00:13]} 118. Bc8 {[%clk 0:00:10]}  Nc6 {[%clk 0:00:13]} 119. Bh3 {[%clk 0:00:09]}  Nd4 {[%clk 0:00:14]} 120. Bg2 {[%clk 0:00:10]}  Ne2+ {[%clk 0:00:14]} 121. Kd2 {[%clk 0:00:10]}  Nd4 {[%clk 0:00:15]} 122. Ke3 {[%clk 0:00:11]}  Ne6 {[%clk 0:00:15]} 123. Be4 {[%clk 0:00:11]}  Nd4 {[%clk 0:00:14]} 124. Bg6 {[%clk 0:00:12]}  Nc2+ {[%clk 0:00:15]} 125. Ke4 {[%clk 0:00:11]}  Nd4 {[%clk 0:00:16]} 126. Be8 {[%clk 0:00:11]}  Nb3 {[%clk 0:00:15]} 127. Ba4 {[%clk 0:00:11]}  Nd4 {[%clk 0:00:15]} 128. Bd1 {[%clk 0:00:12]}  Nc6 {[%clk 0:00:15]} 129. Bg4 {[%clk 0:00:13]}  Nd4 {[%clk 0:00:16]} 130. Bd1 {[%clk 0:00:13]} 1/2-1/2


[Site "https://www.chess.com"]

[Event "Titled Tuesday Blitz March 07 Early 2023"]
[White "Volkov, Sergey"]
[Black "Aarav Dengla"]
[WhiteFideId "4122763"]
[BlackFideId "45059756"]
[WhiteElo "2401"]
[BlackElo "2285"]
[Result "1-0"]
[Round "01"]
[TimeControl "180+2"]
[Date "2023.03.07"]
[WhiteClock "0:01:53"]
[BlackClock "0:00:41"]

1. d4 {[%clk 0:02:59]}  d5 {[%clk 0:02:59]} 2. c4 {[%clk 0:02:59]}  e6 {[%clk 0:02:59]} 3. Nc3 {[%clk 0:02:58]}  a6 {[%clk 0:02:59]} 4. e3 {[%clk 0:02:54]}  Nf6 {[%clk 0:02:53]} 5. Nf3 {[%clk 0:02:54]}  Be7 {[%clk 0:02:53]} 6. b3 {[%clk 0:02:49]}  O-O {[%clk 0:02:51]} 7. Bb2 {[%clk 0:02:48]}  b6 {[%clk 0:02:51]} 8. Bd3 {[%clk 0:02:46]}  Bb7 {[%clk 0:02:42]} 9. O-O {[%clk 0:02:45]}  c5 {[%clk 0:02:40]} 10. cxd5 {[%clk 0:02:42]}  cxd4 {[%clk 0:02:18]} 11. Nxd4 {[%clk 0:02:41]}  Nxd5 {[%clk 0:02:17]} 12. Qf3 {[%clk 0:02:29]}  Nc6 {[%clk 0:02:00]} 13. Nxd5 {[%clk 0:02:25]}  exd5 {[%clk 0:01:20]} 14. Nf5 {[%clk 0:02:23]}  Bf6 {[%clk 0:01:19]} 15. Nh6+ {[%clk 0:02:21]}  gxh6 {[%clk 0:00:51]} 16. Bxf6 {[%clk 0:02:18]}  Ne5 {[%clk 0:00:51]} 17. Qg3+ {[%clk 0:02:01]}  Ng6 {[%clk 0:00:49]} 18. Bxd8 {[%clk 0:02:00]}  Rfxd8 {[%clk 0:00:49]} 19. h4 {[%clk 0:01:58]}  h5 {[%clk 0:00:47]} 20. f4 {[%clk 0:01:57]}  Kf8 {[%clk 0:00:42]} 21. f5 {[%clk 0:01:55]}  Ne7 {[%clk 0:00:41]} 22. Qg5 {[%clk 0:01:53]} 1-0


[Site "https://www.chess.com"]

[Event "Titled Tuesday Blitz March 07 Early 2023"]
[White "Mazurkiewicz, Michal"]
[Black "Zakhartsov, Vladimir"]
[WhiteFideId "1124943"]
[BlackFideId "4145097"]
[WhiteElo "2054"]
[BlackElo "2521"]
[Result "0-1"]
[Round "01"]
[TimeControl "180+2"]
[Date "2023.03.07"]
[WhiteClock "0:00:11"]
[BlackClock "0:00:14"]

1. e4 {[%clk 0:02:54]}  c5 {[%clk 0:02:59]} 2. Nf3 {[%clk 0:02:55]}  d6 {[%clk 0:02:58]} 3. g3 {[%clk 0:02:55]}  Nf6 {[%clk 0:02:57]} 4. d3 {[%clk 0:02:55]}  g6 {[%clk 0:02:57]} 5. Bg2 {[%clk 0:02:55]}  Bg7 {[%clk 0:02:58]} 6. O-O {[%clk 0:02:56]}  O-O {[%clk 0:02:59]} 7. Re1 {[%clk 0:02:54]}  Nc6 {[%clk 0:02:59]} 8. e5 {[%clk 0:02:54]}  dxe5 {[%clk 0:02:57]} 9. Nxe5 {[%clk 0:02:55]}  Nxe5 {[%clk 0:02:57]} 10. Rxe5 {[%clk 0:02:56]}  Qc7 {[%clk 0:02:48]} 11. Bf4 {[%clk 0:02:56]}  Qb6 {[%clk 0:02:43]} 12. Nc3 {[%clk 0:02:56]}  Qxb2 {[%clk 0:02:34]} 13. Rxc5 {[%clk 0:02:55]}  Nd7 {[%clk 0:02:29]} 14. Rc7 {[%clk 0:02:48]}  e5 {[%clk 0:01:59]} 15. Be3 {[%clk 0:02:36]}  Qa3 {[%clk 0:01:49]} 16. Rb1 {[%clk 0:02:08]}  Qd6 {[%clk 0:01:36]} 17. Bxb7 {[%clk 0:02:05]}  Qxc7 {[%clk 0:01:34]} 18. Bxa8 {[%clk 0:02:05]}  Qxc3 {[%clk 0:01:34]} 19. Bg2 {[%clk 0:01:42]}  Qa5 {[%clk 0:01:31]} 20. c4 {[%clk 0:01:38]}  Nb6 {[%clk 0:01:20]} 21. c5 {[%clk 0:01:35]}  Na4 {[%clk 0:01:17]} 22. Bd2 {[%clk 0:01:15]}  Qa6 {[%clk 0:01:17]} 23. Qc2 {[%clk 0:01:07]}  Be6 {[%clk 0:00:39]} 24. Rb4 {[%clk 0:01:03]}  Nxc5 {[%clk 0:00:39]} 25. Qxc5 {[%clk 0:01:03]}  Qxd3 {[%clk 0:00:39]} 26. Qe3 {[%clk 0:00:49]}  Qa6 {[%clk 0:00:31]} 27. a4 {[%clk 0:00:43]}  Rd8 {[%clk 0:00:31]} 28. Bf1 {[%clk 0:00:34]}  Qd6 {[%clk 0:00:31]} 29. Rb2 {[%clk 0:00:24]}  e4 {[%clk 0:00:19]} 30. Bb4 {[%clk 0:00:15]}  Qd1 {[%clk 0:00:16]} 31. Rd2 {[%clk 0:00:16]}  Rxd2 {[%clk 0:00:15]} 32. Qxd2 {[%clk 0:00:17]}  Qxd2 {[%clk 0:00:15]} 33. Bxd2 {[%clk 0:00:18]}  Bd4 {[%clk 0:00:15]} 34. Be3 {[%clk 0:00:14]}  Bxe3 {[%clk 0:00:14]} 35. fxe3 {[%clk 0:00:15]}  Kg7 {[%clk 0:00:14]} 36. Kf2 {[%clk 0:00:15]}  Kf6 {[%clk 0:00:14]} 37. a5 {[%clk 0:00:15]}  Ke5 {[%clk 0:00:14]} 38. h4 {[%clk 0:00:14]}  h5 {[%clk 0:00:13]} 39. Ke1 {[%clk 0:00:12]}  Kd5 {[%clk 0:00:13]} 40. Kd2 {[%clk 0:00:13]}  Kc5 {[%clk 0:00:14]} 41. Kc3 {[%clk 0:00:13]}  f6 {[%clk 0:00:13]} 42. a6 {[%clk 0:00:13]}  g5 {[%clk 0:00:13]} 43. hxg5 {[%clk 0:00:13]}  fxg5 {[%clk 0:00:13]} 44. Bg2 {[%clk 0:00:12]}  Bf5 {[%clk 0:00:13]} 45. Kd2 {[%clk 0:00:11]}  h4 {[%clk 0:00:13]} 46. gxh4 {[%clk 0:00:11]}  gxh4 {[%clk 0:00:14]} 47. Kc3 {[%clk 0:00:12]}  h3 {[%clk 0:00:14]} 48. Bh1 {[%clk 0:00:12]}  Kd5 {[%clk 0:00:14]} 49. Kb4 {[%clk 0:00:11]}  Bg4 {[%clk 0:00:14]} 50. Kc3 {[%clk 0:00:11]}  Bf3 {[%clk 0:00:14]} 0-1


[Site "https://www.chess.com"]

[Event "Titled Tuesday Blitz March 07 Early 2023"]
[White "Sreyas Payyappat"]
[Black "Molina, Roberto Junio Brito"]
[WhiteFideId "46674969"]
[BlackFideId "2109450"]
[WhiteElo "2083"]
[BlackElo "2376"]
[Result "1-0"]
[Round "01"]
[TimeControl "180+2"]
[Date "2023.03.07"]
[WhiteClock "0:00:26"]
[BlackClock "0:00:45"]

1. e4 {[%clk 0:02:58]}  c6 {[%clk 0:02:52]} 2. d4 {[%clk 0:02:56]}  d5 {[%clk 0:02:53]} 3. Nc3 {[%clk 0:02:56]}  dxe4 {[%clk 0:02:54]} 4. Nxe4 {[%clk 0:02:56]}  Nd7 {[%clk 0:02:54]} 5. Nf3 {[%clk 0:02:56]}  Ngf6 {[%clk 0:02:54]} 6. Nxf6+ {[%clk 0:02:56]}  Nxf6 {[%clk 0:02:55]} 7. Bd3 {[%clk 0:02:57]}  Bg4 {[%clk 0:02:55]} 8. c3 {[%clk 0:02:57]}  Qd5 {[%clk 0:02:55]} 9. Be2 {[%clk 0:02:53]}  e6 {[%clk 0:02:54]} 10. O-O {[%clk 0:02:53]}  Be7 {[%clk 0:02:53]} 11. Bf4 {[%clk 0:02:49]}  O-O {[%clk 0:02:53]} 12. h3 {[%clk 0:02:47]}  Bh5 {[%clk 0:02:53]} 13. Be5 {[%clk 0:02:47]}  Rfd8 {[%clk 0:02:52]} 14. Qc2 {[%clk 0:02:45]}  c5 {[%clk 0:02:46]} 15. Rad1 {[%clk 0:02:38]}  Rac8 {[%clk 0:02:42]} 16. c4 {[%clk 0:01:39]}  cxd4 {[%clk 0:02:39]} 17. g4 {[%clk 0:01:26]}  Bg6 {[%clk 0:02:13]} 18. Qxg6 {[%clk 0:01:08]}  Qxf3 {[%clk 0:02:12]} 19. Qxg7+ {[%clk 0:01:06]}  Kxg7 {[%clk 0:02:12]} 20. Bxf3 {[%clk 0:01:06]}  h6 {[%clk 0:02:01]} 21. b3 {[%clk 0:00:57]}  Rd7 {[%clk 0:01:57]} 22. Rxd4 {[%clk 0:00:51]}  Rxd4 {[%clk 0:01:55]} 23. Bxd4 {[%clk 0:00:52]}  b6 {[%clk 0:01:55]} 24. Rd1 {[%clk 0:00:50]}  Rd8 {[%clk 0:01:54]} 25. Kg2 {[%clk 0:00:42]}  Kg6 {[%clk 0:01:48]} 26. h4 {[%clk 0:00:38]}  Rd7 {[%clk 0:01:32]} 27. h5+ {[%clk 0:00:37]}  Kh7 {[%clk 0:01:31]} 28. Bxf6 {[%clk 0:00:35]}  Rxd1 {[%clk 0:01:31]} 29. Bxe7 {[%clk 0:00:35]}  Rd2 {[%clk 0:01:31]} 30. a4 {[%clk 0:00:31]}  Kg7 {[%clk 0:01:29]} 31. c5 {[%clk 0:00:30]}  bxc5 {[%clk 0:01:23]} 32. Bxc5 {[%clk 0:00:31]}  a6 {[%clk 0:01:19]} 33. b4 {[%clk 0:00:30]}  Rc2 {[%clk 0:01:15]} 34. a5 {[%clk 0:00:30]}  Kf6 {[%clk 0:01:13]} 35. Bb7 {[%clk 0:00:30]}  Kg5 {[%clk 0:00:47]} 36. Bxa6 {[%clk 0:00:27]}  Kxg4 {[%clk 0:00:47]} 37. Bb7 {[%clk 0:00:26]}  Kxh5 {[%clk 0:00:45]} 38. a6 {[%clk 0:00:26]} 1-0


[Site "https://www.chess.com"]

[Event "Titled Tuesday Blitz March 07 Early 2023"]
[White "Mouhamad, Joachim"]
[Black "Harsha Bharathakoti"]
[WhiteFideId "656410"]
[BlackFideId "5078776"]
[WhiteElo "2164"]
[BlackElo "2481"]
[Result "0-1"]
[Round "01"]
[TimeControl "180+2"]
[Date "2023.03.07"]
[WhiteClock "0:00:56"]
[BlackClock "0:01:00"]

1. e4 {[%clk 0:03:00]}  c6 {[%clk 0:02:56]} 2. d4 {[%clk 0:03:00]}  d5 {[%clk 0:02:57]} 3. Nc3 {[%clk 0:03:01]}  dxe4 {[%clk 0:02:53]} 4. Nxe4 {[%clk 0:03:02]}  Nf6 {[%clk 0:02:51]} 5. Nxf6+ {[%clk 0:03:02]}  exf6 {[%clk 0:02:51]} 6. c3 {[%clk 0:03:03]}  Bd6 {[%clk 0:02:51]} 7. Bd3 {[%clk 0:03:04]}  O-O {[%clk 0:02:51]} 8. Ne2 {[%clk 0:03:04]}  Re8 {[%clk 0:02:51]} 9. O-O {[%clk 0:03:05]}  Nd7 {[%clk 0:02:43]} 10. Bf4 {[%clk 0:03:05]}  Nf8 {[%clk 0:02:43]} 11. Bxd6 {[%clk 0:03:06]}  Qxd6 {[%clk 0:02:43]} 12. Ng3 {[%clk 0:03:07]}  Ng6 {[%clk 0:02:38]} 13. Qc2 {[%clk 0:03:03]}  Bd7 {[%clk 0:02:36]} 14. f4 {[%clk 0:02:59]}  Re3 {[%clk 0:02:30]} 15. f5 {[%clk 0:02:51]}  Nf4 {[%clk 0:02:25]} 16. Bc4 {[%clk 0:02:48]}  Rae8 {[%clk 0:02:20]} 17. Qd2 {[%clk 0:02:42]}  b5 {[%clk 0:02:13]} 18. Bb3 {[%clk 0:02:40]}  Ne2+ {[%clk 0:02:02]} 19. Nxe2 {[%clk 0:02:38]}  Rxe2 {[%clk 0:02:03]} 20. Qd1 {[%clk 0:02:02]}  c5 {[%clk 0:01:41]} 21. Rc1 {[%clk 0:01:45]}  c4 {[%clk 0:01:35]} 22. Rc2 {[%clk 0:01:46]}  R2e3 {[%clk 0:01:31]} 23. Rd2 {[%clk 0:01:26]}  cxb3 {[%clk 0:01:29]} 24. axb3 {[%clk 0:01:25]}  h6 {[%clk 0:01:26]} 25. c4 {[%clk 0:01:25]}  Qb4 {[%clk 0:01:16]} 26. c5 {[%clk 0:01:18]}  Bc6 {[%clk 0:01:00]} 27. d5 {[%clk 0:01:10]}  Qxc5 {[%clk 0:01:00]} 28. dxc6 {[%clk 0:00:56]}  Re1+ {[%clk 0:00:59]} 29. Kh1 {[%clk 0:00:56]}  Rxd1 {[%clk 0:01:00]} 0-1


[Site "https://www.chess.com"]

[Event "Titled Tuesday Blitz March 07 Early 2023"]
[White "Rakhmatullaev, Almas"]
[Black "Postnikov, Artem"]
[WhiteFideId "14205793"]
[BlackFideId "34153575"]
[WhiteElo "2221"]
[BlackElo "2243"]
[Result "1-0"]
[Round "01"]
[TimeControl "180+2"]
[Date "2023.03.07"]
[WhiteClock "0:00:19"]
[BlackClock "0:00:02"]

1. e4 {[%clk 0:03:00]}  c6 {[%clk 0:02:57]} 2. Nf3 {[%clk 0:03:00]}  d5 {[%clk 0:02:57]} 3. d3 {[%clk 0:03:01]}  dxe4 {[%clk 0:02:54]} 4. dxe4 {[%clk 0:03:02]}  Qxd1+ {[%clk 0:02:54]} 5. Kxd1 {[%clk 0:03:02]}  Nf6 {[%clk 0:02:49]} 6. Nbd2 {[%clk 0:02:56]}  Rg8 {[%clk 0:02:35]} 7. Ne1 {[%clk 0:02:51]}  g5 {[%clk 0:02:34]} 8. Nd3 {[%clk 0:02:51]}  h5 {[%clk 0:02:24]} 9. c3 {[%clk 0:02:41]}  Nbd7 {[%clk 0:02:12]} 10. Kc2 {[%clk 0:02:39]}  g4 {[%clk 0:02:07]} 11. a4 {[%clk 0:02:28]}  Bh6 {[%clk 0:01:55]} 12. f3 {[%clk 0:02:21]}  gxf3 {[%clk 0:01:39]} 13. gxf3 {[%clk 0:02:21]}  Nf8 {[%clk 0:01:27]} 14. a5 {[%clk 0:02:14]}  Ne6 {[%clk 0:01:20]} 15. a6 {[%clk 0:02:07]}  b6 {[%clk 0:01:17]} 16. Ne5 {[%clk 0:01:59]}  Bd7 {[%clk 0:01:02]} 17. Ndc4 {[%clk 0:01:54]}  Bxc1 {[%clk 0:00:59]} 18. Rxc1 {[%clk 0:01:54]}  Nf4 {[%clk 0:00:43]} 19. Ne3 {[%clk 0:01:48]}  c5 {[%clk 0:00:28]} 20. Bc4 {[%clk 0:01:34]}  Be6 {[%clk 0:00:15]} 21. Bb5+ {[%clk 0:01:28]}  Kd8 {[%clk 0:00:15]} 22. Nc6+ {[%clk 0:01:21]}  Kc7 {[%clk 0:00:12]} 23. Nxe7 {[%clk 0:01:21]}  Rg5 {[%clk 0:00:12]} 24. Rhg1 {[%clk 0:01:15]}  Rxg1 {[%clk 0:00:11]} 25. Rxg1 {[%clk 0:01:16]}  Kd6 {[%clk 0:00:10]} 26. N7f5+ {[%clk 0:01:01]}  Ke5 {[%clk 0:00:06]} 27. Nc4+ {[%clk 0:00:54]}  Bxc4 {[%clk 0:00:05]} 28. Bxc4 {[%clk 0:00:54]}  Ne6 {[%clk 0:00:04]} 29. Nh6 {[%clk 0:00:51]}  Rf8 {[%clk 0:00:01]} 30. h4 {[%clk 0:00:47]}  Nd8 {[%clk 0:00:01]} 31. Rg5+ {[%clk 0:00:42]}  Kf4 {[%clk 0:00:02]} 32. Rf5+ {[%clk 0:00:42]}  Kg3 {[%clk 0:00:02]} 33. Rxf6 {[%clk 0:00:42]}  Kxh4 {[%clk 0:00:02]} 34. Nxf7 {[%clk 0:00:40]}  Kg3 {[%clk 0:00:03]} 35. e5 {[%clk 0:00:32]}  h4 {[%clk 0:00:02]} 36. e6 {[%clk 0:00:24]}  Nxf7 {[%clk 0:00:01]} 37. e7 {[%clk 0:00:18]}  Re8 {[%clk 0:00:01]} 38. Rxf7 {[%clk 0:00:19]}  h3 {[%clk 0:00:02]} 39. Bb5 {[%clk 0:00:19]}  Rxe7 {[%clk 0:00:02]} 40. Rxe7 {[%clk 0:00:19]} 1-0


[Site "https://www.chess.com"]